bitfinex-derivatives/quotes_SOLF0:USTF0_20251201
["timestamp","ask_amount","ask_price","bid_price","bid_amount"]
[1764577982696,3.07,127.24,127.23,0.05467962]
[1764577987904,10.1444,127.24,127.23,0.05467962]
[1764577988705,7.13394955,127.26,127.23,3.30467962]
[1764577988907,3.07,127.25,127.23,3.30467962]
[1764577990008,10.144,127.25,127.23,3.30467962]
[1764577992701,3.13044955,127.26,127.23,3.30467962]
[1764577995298,3.07,127.25,127.23,3.30467962]
[1764577996808,7.13374955,127.26,127.23,3.30467962]
[1764577996809,10.20374955,127.26,127.23,3.30467962]
[1764577997510,3.07,127.25,127.23,3.30467962]
[1764577999112,10.144,127.25,127.23,3.30467962]
[1764578003720,3.23,127.24,127.23,0.05467962]
[1764578010128,0.06044955,127.26,127.23,3.36467962]
[1764578010334,3.33,127.31,127.25,3.31]
[1764578011330,3.38762233,127.29,127.27,3.36317647]
[1764578014238,3.38762233,127.29,127.27,0.05317647]
[1764578014638,6.32762233,127.29,127.27,0.05317647]
[1764578014940,3.33,127.28,127.27,0.05317647]
[1764578015440,10.4022,127.28,127.27,0.05317647]
[1764578018147,3.33,127.25,127.22,3.31]
[1764578018945,3.38187313,127.25,127.22,3.36092511]
[1764578020046,3.33,127.24,127.22,3.36092511]
[1764578020239,3.33,127.24,127.22,0.05092511]
[1764578020636,10.405,127.23,127.22,0.05092511]
[1764578020944,3.33,127.22,127.18,3.31]
[1764578021548,3.33,127.22,127.19,3.31]
[1764578021940,3.38019054,127.22,127.19,3.36643407]
[1764578025248,3.38019054,127.22,127.19,0.05643407]
[1764578025651,10.45569054,127.22,127.19,0.05643407]
[1764578026042,3.33,127.21,127.19,0.05643407]
[1764578027059,3.33,127.21,127.19,3.36643407]
[1764578029056,10.4065,127.21,127.19,0.05643407]
[1764578029255,3.33,127.2,127.19,0.05643407]
[1764578029847,10.4066,127.2,127.19,0.05643407]
[1764578031557,3.33,127.2,127.19,0.05643407]
[1764578038760,0.05019054,127.22,127.19,3.27643407]
[1764578038952,3.17019054,127.22,127.19,5.88555324]
[1764578040363,3.17019054,127.22,127.2,3.22]
[1764578040364,7.12579054,127.22,127.2,3.22]
[1764578040862,0.05019054,127.22,127.2,3.22]
[1764578041460,3.17019054,127.22,127.2,3.22]
[1764578042062,0.05019054,127.22,127.2,10.2964]
[1764578042253,0.05019054,127.22,127.21,32.66911917]
[1764578042460,3.12,127.26,127.23,5.82911917]
[1764578043357,7.0733,127.27,127.24,3.22]
[1764578043562,0.05997859,127.26,127.25,5.82911917]
[1764578043859,0.05997859,127.26,127.25,12.90291917]
[1764578044055,6.06,127.29,127.27,5.82911917]
[1764578045061,6.11996576,127.29,127.27,5.87919812]
[1764578046165,2.99996576,127.29,127.28,3.22]
[1764578046355,2.99996576,127.29,127.28,10.2922]
[1764578052066,2.99996576,127.29,127.28,37.1322]
[1764578052460,3.12,127.35,127.29,12.90061917]
[1764578053365,0.05387765,127.33,127.31,0.05156928]
[1764578053564,3.12,127.32,127.31,0.05156928]
[1764578057161,10.19,127.32,127.31,0.05156928]
[1764578058971,3.12,127.3,127.27,3.22]
[1764578059165,3.12,127.3,127.27,5.82911917]
[1764578059756,3.12,127.3,127.27,12.90181917]
[1764578059959,3.17570559,127.3,127.27,12.9620008]
[1764578060166,0.05570559,127.3,127.29,5.80911917]
[1764578062471,3.39570559,127.3,127.27,10.33288163]
[1764578062874,3.39570559,127.3,127.28,3.2]
[1764578063876,10.46680559,127.3,127.28,3.2]
[1764578066468,0.05570559,127.3,127.28,5.80911917]
[1764578066684,3.39570559,127.3,127.28,5.80911917]
[1764578070788,3.39570559,127.3,127.28,12.88121917]
[1764578072382,0.05570559,127.3,127.29,10.3516]
[1764578078591,3.26,127.36,127.32,3.28]
[1764578078792,3.26,127.36,127.33,5.88911917]
[1764578079493,3.31183267,127.36,127.33,5.93862438]
[1764578082502,0.05183267,127.36,127.34,3.28]
[1764578082692,0.05183267,127.36,127.35,5.88911917]
[1764578092510,0.05183267,127.36,127.35,3.28]
[1764578094515,0.05183267,127.36,127.35,30.08]
[1764578094815,0.05183267,127.36,127.35,3.28]
[1764578095014,0.05183267,127.36,127.35,30.08]
[1764578095208,0.05183267,127.36,127.35,37.1483]
[1764578097016,3.41183267,127.36,127.35,33.8683]
[1764578097208,0.05183267,127.36,127.35,29.94]
[1764578100206,0.05183267,127.36,127.35,3.14]
[1764578107924,0.05183267,127.36,127.35,10.2083]
[1764578109518,0.05183267,127.36,127.35,14.27376142]
[1764578109822,0.00183267,127.36,127.35,14.27376142]
[1764578110028,3.36,127.44,127.37,3.14]
[1764578110323,123.6337789,127.47,127.39,3.14]
[1764578110324,3.36,127.42,127.39,3.14]
[1764578110828,3.36,127.42,127.4,3.14]
[1764578111015,3.41847164,127.42,127.4,3.19832828]
[1764578111324,0.05847164,127.42,127.4,3.19832828]
[1764578112824,0.05847164,127.42,127.41,3.14]
[1764578119731,3.36,127.47,127.42,3.14]
[1764578120029,3.33,127.49,127.44,3.13]
[1764578120229,3.33,127.48,127.44,3.13]
[1764578120834,0.05697188,127.47,127.45,3.18438676]
[1764578121326,3.38697188,127.47,127.45,0.05438676]
[1764578122333,10.44907188,127.47,127.45,0.05438676]
[1764578122528,3.33,127.46,127.45,0.05438676]
[1764578123931,10.3922,127.46,127.45,0.05438676]
[1764578124340,16.4595824,127.46,127.45,0.05438676]
[1764578124840,10.3922,127.46,127.45,0.05438676]
[1764578130247,3.33,127.46,127.45,0.05438676]
[1764578130433,3.44697188,127.47,127.45,3.42438676]
[1764578131245,0.05697188,127.47,127.45,3.42438676]
[1764578133441,0.05697188,127.47,127.46,3.37]
[1764578139240,3.44697188,127.47,127.45,0.05438676]
[1764578139546,0.05697188,127.47,127.46,3.37]
[1764578139745,7.11857188,127.47,127.46,3.37]
[1764578140333,0.05697188,127.47,127.46,3.37]
[1764578159370,112.9912,127.53,127.46,3.37]
[1764578159570,9.23985643,127.52,127.48,3.06]
[1764578159872,3.19,127.52,127.48,3.06]
[1764578160375,0.05807339,127.51,127.49,3.11295384]
[1764578160970,0.05807339,127.51,127.49,5.71082464]
[1764578161178,0.05807339,127.51,127.5,3.06]
[1764578165678,4.71108796,127.55,127.51,3.06]
[1764578165874,4.71108796,127.55,127.53,3.06]
[1764578166677,4.76663626,127.55,127.53,3.11422996]
[1764578168381,4.76663626,127.55,127.54,3.06]
[1764578177687,4.76663626,127.55,127.54,10.1178]
[1764578177891,3.19,127.61,127.55,3.06]
[1764578178190,3.19,127.63,127.6,3.06]
[1764578178989,3.19,127.65,127.61,3.06]
[1764578179188,3.19,127.65,127.6,3.11392549]
[1764578179382,3.19,127.64,127.6,3.11392549]
[1764578183593,10.1818,127.65,127.62,3.27]
[1764578184496,3.13,127.64,127.62,3.27]
[1764578186098,3.13,127.67,127.62,3.27]
[1764578186294,3.13,127.67,127.63,3.32408262]
[1764578187396,3.13,127.67,127.63,10.37668262]
[1764578187899,3.31,127.66,127.63,10.37668262]
[1764578188295,3.31,127.66,127.64,3.07]
[1764578189195,3.31,127.65,127.63,0.05408262]
[1764578189391,3.31,127.65,127.63,3.12408262]
[1764578189993,3.31,127.64,127.63,0.05408262]
[1764578193099,3.31,127.62,127.59,3.07]
[1764578194105,10.415304,127.62,127.59,3.12119543]
[1764578195206,3.31,127.61,127.59,3.12119543]
[1764578195505,10.3639,127.61,127.59,3.12119543]
[1764578195705,3.31,127.6,127.59,0.05119543]
[1764578196401,10.3639,127.61,127.59,0.05119543]
[1764578196806,10.3644,127.6,127.59,0.05119543]
[1764578197301,3.31,127.6,127.59,0.05119543]
[1764578197499,3.31,127.61,127.59,0.05119543]
[1764578197706,3.31,127.61,127.59,3.12119543]
[1764578198006,3.31,127.61,127.59,0.05119543]
[1764578198205,3.31,127.61,127.59,3.12119543]
[1764578198706,3.361904,127.62,127.59,5.71906623]
[1764578199005,3.361904,127.62,127.6,3.07]
[1764578199200,0.051904,127.62,127.61,5.6678708]
[1764578202406,0.051904,127.62,127.61,3.07]
[1764578202904,0.051904,127.62,127.6,29.3778708]
[1764578203109,0.051904,127.62,127.6,5.6678708]
[1764578203604,3.361904,127.62,127.59,0.05119543]
[1764578204403,7.054,127.61,127.59,0.05119543]
[1764578204610,3.31,127.6,127.59,0.05119543]
[1764578205114,10.3644,127.6,127.59,0.05119543]
[1764578205507,0.051904,127.62,127.51,185.9288]
[1764578205508,3.31,127.59,127.53,3.07]
[1764578205711,3.31,127.59,127.56,5.6678708]
[1764578205914,3.31,127.59,127.57,3.07]
[1764578206223,3.31,127.6,127.57,3.07]
[1764578206805,3.36680529,127.6,127.57,3.1230322]
[1764578210219,3.14,127.59,127.57,3.1230322]
[1764578210421,3.14,127.59,127.57,0.0530322]
[1764578210919,0.05680529,127.6,127.57,0.0530322]
[1764578210920,10.1955,127.58,127.57,0.0530322]
[1764578217533,3.19680529,127.6,127.57,3.1430322]
[1764578218333,10.1951,127.59,127.57,3.1430322]
[1764578221040,10.1955,127.58,127.57,0.0530322]
[1764578225347,3.14,127.55,127.52,7.0588]
[1764578225842,3.14,127.55,127.51,26.78]
[1764578226147,3.14,127.53,127.51,29.87]
[1764578226444,0.05728887,127.53,127.52,3.09]
[1764578226642,3.19728887,127.53,127.51,26.83350777]
[1764578226843,3.14,127.52,127.51,26.83350777]
[1764578227045,10.25568887,127.53,127.51,26.83350777]
[1764578227534,3.14,127.52,127.51,26.83350777]
[1764578228447,10.25568887,127.53,127.51,26.83350777]
[1764578230042,3.19728887,127.53,127.51,26.83350777]
[1764578230233,3.19728887,127.53,127.51,29.92350777]
[1764578231844,3.19728887,127.53,127.51,26.83350777]
[1764578232148,3.14,127.52,127.51,26.83350777]
[1764578233346,3.19728887,127.53,127.51,29.92350777]
[1764578233751,3.19728887,127.53,127.51,26.83350777]
[1764578235548,3.19728887,127.53,127.51,29.92350777]
[1764578237352,0.05728887,127.53,127.52,3.09]
[1764578238053,0.05728887,127.53,127.52,10.1489]
[1764578239059,0.05728887,127.53,127.52,3.09]
[1764578242455,3.13728887,127.53,127.51,3.36350777]
[1764578242754,0.05728887,127.53,127.51,30.16350777]
[1764578243155,0.05728887,127.53,127.52,3.31]
[1764578245864,10.1359,127.58,127.53,3.31]
[1764578246957,0.05417108,127.57,127.55,3.31]
[1764578247347,3.34,127.56,127.54,3.27821779]
[1764578249258,10.3967,127.56,127.54,3.27821779]
[1764578250855,10.3972,127.55,127.54,0.05821779]
[1764578252651,3.34,127.53,127.5,3.22]
[1764578252845,3.34,127.53,127.48,3.22]
[1764578253047,3.34,127.53,127.49,3.22]
[1764578253549,3.34,127.56,127.49,3.22]
[1764578253754,3.39410797,127.54,127.51,3.27847498]
[1764578254155,10.45240797,127.54,127.51,3.27847498]
[1764578254355,3.34,127.53,127.51,0.05847498]
[1764578254552,7.0589,127.52,127.51,0.05847498]
[1764578254860,10.3989,127.52,127.51,0.05847498]
[1764578255056,3.34,127.5,127.45,3.22]
[1764578255262,3.34,127.5,127.41,23.43268173]
[1764578255263,3.34,127.47,127.43,3.22]
[1764578255853,7.0622,127.46,127.43,3.22]
[1764578256159,10.46147322,127.46,127.43,3.27868665]
[1764578256757,3.39927322,127.46,127.43,3.27868665]
[1764578256957,3.39927322,127.46,127.43,0.05868665]
[1764578257765,3.39927322,127.46,127.43,3.27868665]
[1764578260361,10.46157322,127.46,127.43,3.27868665]
[1764578260763,0.05927322,127.46,127.43,3.27868665]
[1764578261266,3.39927322,127.46,127.43,0.05868665]
[1764578262461,10.46157322,127.46,127.43,0.05868665]
[1764578262662,3.34,127.45,127.43,0.05868665]
[1764578262863,10.4028,127.45,127.43,0.05868665]
[1764578263070,3.34,127.44,127.43,0.05868665]
[1764578267673,10.4028,127.45,127.43,0.05868665]
[1764578267873,0.05927322,127.46,127.43,3.27868665]
[1764578268273,3.39927322,127.46,127.43,3.27868665]
[1764578268970,3.39927322,127.46,127.43,0.05868665]
[1764578269876,10.3633,127.44,127.43,0.05868665]
[1764578275676,10.42177322,127.46,127.43,3.30868665]
[1764578276076,7.12177322,127.46,127.43,3.30868665]
[1764578279477,0.05927322,127.46,127.43,3.30868665]
[1764578279788,3.35927322,127.46,127.43,3.30868665]
[1764578281385,10.42147322,127.46,127.43,3.30868665]
[1764578281979,3.3,127.52,127.46,3.25]
[1764578282178,3.3,127.52,127.49,3.25]
[1764578282874,7.0594,127.51,127.49,3.25]
[1764578283073,7.0594,127.51,127.5,5.84866489]
[1764578283987,7.0594,127.51,127.5,2.59866489]
[1764578285886,3.35779616,127.52,127.5,2.59866489]
[1764578286685,3.35779616,127.52,127.5,5.84866489]
[1764578287588,3.35779616,127.52,127.5,2.59866489]
[1764578288582,3.35779616,127.52,127.49,3.30289149]
[1764578288789,3.35779616,127.52,127.49,5.90155638]
[1764578289991,0.05779616,127.52,127.5,3.25]
[1764578290292,0.05779616,127.52,127.51,5.84866489]
[1764578290895,3.35779616,127.52,127.51,2.59866489]
[1764578291091,0.05779616,127.52,127.51,5.84866489]
[1764578292687,0.05779616,127.52,127.51,32.66866489]
[1764578293487,0.05779616,127.52,127.51,39.72806489]
[1764578293794,3.3,127.57,127.54,3.25]
[1764578294396,10.3561,127.57,127.54,3.25]
[1764578294891,3.35898632,127.57,127.55,3.25]
[1764578295195,0.05898632,127.57,127.55,3.25]
[1764578296595,0.05898632,127.57,127.56,3.25]
[1764578297788,0.05898632,127.57,127.56,10.3067]
[1764578298994,0.05898632,127.57,127.56,3.25]
[1764578299193,0.05898632,127.57,127.55,3.25]
[1764578303905,3.19898632,127.57,127.54,12.9925078]
[1764578304601,3.19898632,127.57,127.54,10.39384291]
[1764578305993,3.19898632,127.57,127.54,7.11384291]
[1764578306600,3.19898632,127.57,127.54,0.05634291]
[1764578307709,3.14,127.55,127.54,0.05634291]
[1764578308206,3.14,127.52,127.49,30.08]
[1764578308392,7.0587,127.53,127.51,3.28]
[1764578308594,3.14,127.57,127.53,3.28]
[1764578309195,3.14,127.55,127.54,0.05671235]
[1764578310501,10.1972,127.55,127.54,0.05671235]
[1764578310804,0.05855847,127.56,127.54,0.05671235]
[1764578311101,0.05855847,127.56,127.55,3.28]
[1764578315010,0.05855847,127.56,127.55,10.3372]
[1764578324416,0.05855847,127.56,127.55,12.93586489]
[1764578327119,0.05855847,127.56,127.55,10.3372]
[1764578327321,0.05855847,127.56,127.55,12.93586489]
[1764578332928,0.05855847,127.56,127.55,39.58586489]
[1764578333124,3.15,127.65,127.58,3.15]
[1764578333326,2.59866489,127.66,127.59,29.39866489]
[1764578333327,3.15,127.63,127.59,29.39866489]
[1764578333518,3.15,127.63,127.57,2.59866489]
[1764578333720,3.15,127.63,127.49,24.22404517]
[1764578333721,3.15,127.6,127.55,32.54866489]
[1764578334132,3.20396093,127.59,127.56,0.05842817]
[1764578334326,3.20466094,127.59,127.56,0.05595802]
[1764578334522,3.15,127.57,127.56,0.05595802]
[1764578337936,3.15,127.54,127.51,26.8]
[1764578338531,3.15,127.54,127.52,3.15]
[1764578339039,3.20966948,127.54,127.52,3.20207733]
[1764578340026,0.05966948,127.54,127.52,3.20207733]
[1764578341341,0.05966948,127.54,127.53,10.2083]
[1764578343234,0.05966948,127.54,127.53,7.0583]
[1764578343437,3.20966948,127.54,127.52,26.85207733]
[1764578343846,3.15,127.53,127.52,26.85207733]
[1764578347939,10.2083,127.53,127.52,26.85207733]
[1764578348938,10.2083,127.53,127.52,0.05207733]
[1764578350246,3.15,127.53,127.52,0.05207733]
[1764578351341,3.20966948,127.54,127.52,0.05207733]
[1764578351549,3.20966948,127.54,127.52,3.20207733]
[1764578352239,10.26746948,127.54,127.52,3.20207733]
[1764578354350,10.26746948,127.54,127.52,0.05207733]
[1764578354646,10.26746948,127.54,127.48,3.15]
[1764578354647,3.15,127.52,127.48,3.15]
[1764578354950,3.15,127.52,127.46,29.95]
[1764578355250,3.15,127.52,127.44,3.15]
[1764578355251,3.15,127.5,127.44,3.15]
[1764578355847,3.20868968,127.48,127.46,0.05619049]
[1764578356036,10.26978968,127.48,127.46,0.05619049]
[1764578356240,0.05868968,127.48,127.47,3.15]
[1764578361948,7.11978968,127.48,127.46,3.24619049]
[1764578362750,10.22978968,127.48,127.46,3.24619049]
[1764578364457,3.11,127.47,127.46,0.05619049]
[1764578365352,10.22978968,127.48,127.46,0.05619049]
[1764578370157,3.16,127.47,127.46,0.05619049]
[1764578371065,10.2216,127.47,127.46,0.05619049]
[1764578371963,3.16,127.47,127.46,0.05619049]
[1764578372158,3.21868968,127.48,127.46,0.05619049]
[1764578372552,3.21868968,127.48,127.46,3.26619049]
[1764578372758,0.05868968,127.48,127.46,3.26619049]
[1764578372962,0.05868968,127.48,127.46,30.08619049]
[1764578373266,0.05868968,127.48,127.47,3.21]
[1764578378166,0.05868968,127.48,127.47,14.32801596]
[1764578378863,0.05868968,127.48,127.47,41.14801596]
[1764578380562,0.05868968,127.48,127.47,37.0916]
[1764578381862,7.0589,127.52,127.48,3.21]
[1764578382055,10.2183,127.53,127.5,3.21]
[1764578382250,3.16,127.52,127.5,3.21]
[1764578382455,10.2183,127.53,127.5,3.21]
[1764578382862,7.059,127.52,127.5,3.26826376]
[1764578383260,10.219,127.52,127.5,3.26826376]
[1764578384857,3.16,127.52,127.5,3.26826376]
[1764578385964,3.21392357,127.53,127.5,3.26826376]
[1764578387661,3.16,127.52,127.5,0.05826376]
[1764578389267,10.2192,127.52,127.5,0.05826376]
[1764578389463,3.16,127.51,127.5,0.05826376]
[1764578392773,10.2194,127.51,127.5,0.05826376]
[1764578393073,3.16,127.51,127.5,0.05826376]
[1764578397463,3.27,127.52,127.5,3.28826376]
[1764578397664,0.05392357,127.53,127.5,3.28826376]
[1764578397977,3.32392357,127.53,127.5,3.28826376]
[1764578398168,3.32392357,127.53,127.51,3.23]
[1764578398368,3.32392357,127.53,127.51,5.82529967]
[1764578398972,3.32392357,127.53,127.51,2.59529967]
[1764578399174,3.32392357,127.53,127.5,9.71306343]
[1764578399375,3.32392357,127.53,127.5,2.65356343]
[1764578400379,3.12,127.52,127.5,2.65356343]
[1764578401178,3.12,127.52,127.5,0.05826376]
[1764578401372,3.12,127.51,127.5,0.05826376]
[1764578402578,10.1794,127.51,127.5,0.05826376]
[1764578406573,3.12,127.52,127.5,5.88356343]
[1764578406968,0.05392357,127.53,127.51,3.23]
[1764578407183,3.17392357,127.53,127.5,2.65356343]
[1764578407474,3.17392357,127.53,127.5,5.88356343]
[1764578408380,10.23222357,127.53,127.5,5.88356343]
[1764578411078,3.12,127.52,127.5,5.88356343]
[1764578413884,3.12,127.52,127.5,12.94346343]
[1764578414586,0.05392357,127.53,127.51,10.2894]
[1764578414783,3.17392357,127.53,127.51,10.2894]
[1764578414985,0.05392357,127.53,127.52,3.23]
[1764578415285,0.05392357,127.53,127.52,10.2889]
[1764578415485,3.17392357,127.53,127.52,7.0589]
[1764578416090,0.05392357,127.53,127.52,12.88419967]
[1764578417088,0.05392357,127.53,127.52,5.82529967]
[1764578417985,0.05392357,127.53,127.52,12.88419967]
[1764578420294,10.1767,127.56,127.54,10.2377]
[1764578420295,3.12,127.56,127.54,10.2377]
[1764578420487,3.39,127.59,127.56,3.18]
[1764578420888,10.445,127.59,127.56,3.18]
[1764578421289,3.39,127.58,127.56,3.18]
[1764578421594,3.39,127.58,127.56,3.2380649]
[1764578423386,10.49589162,127.59,127.57,3.18]
[1764578423582,10.49589162,127.59,127.56,26.8580649]
[1764578423788,10.49589162,127.59,127.56,32.63336457]
[1764578424799,10.49589162,127.59,127.57,3.18]
[1764578425094,0.05089162,127.59,127.58,5.77529967]
[1764578433107,0.05089162,127.59,127.58,12.83079967]
[1764578434802,3.06,127.63,127.6,3.22]
[1764578435008,3.06,127.63,127.61,3.22]
[1764578435410,3.06,127.63,127.6,9.64959967]
[1764578435610,3.06,127.63,127.6,12.86959967]
[1764578435800,3.10295969,127.63,127.6,12.9220114]
[1764578436409,3.10295969,127.63,127.61,10.2736]
[1764578436913,3.10295969,127.63,127.6,12.9221114]
[1764578438402,3.10295969,127.63,127.61,3.22]
[1764578443016,0.04295969,127.63,127.61,10.2735]
[1764578443717,0.04295969,127.63,127.62,12.86859967]
[1764578445517,0.04295969,127.63,127.62,10.2733]
[1764578445718,3.10295969,127.63,127.62,7.0533]
[1764578445911,0.04295969,127.63,127.62,3.22]
[1764578447216,0.04295969,127.63,127.62,5.81529967]
[1764578447416,0.04295969,127.63,127.62,32.57529967]
[1764578451518,0.04295969,127.63,127.62,5.81529967]
[1764578454724,3.12295969,127.63,127.61,29.98]
[1764578455832,3.12295969,127.63,127.61,37.0338]
[1764578456429,0.04295969,127.63,127.62,3.22]
[1764578467562,3.08,127.62,127.6,0.05241173]
[1764578467737,3.08,127.62,127.56,3.22]
[1764578468747,3.13540579,127.6,127.58,0.05625895]
[1764578469347,3.08,127.59,127.58,0.05625895]
[1764578470938,10.135,127.59,127.58,0.05625895]
[1764578473644,3.08,127.58,127.51,69.26853524]
[1764578473848,3.08,127.54,127.51,3.22]
[1764578474238,7.0585,127.53,127.51,3.22]
[1764578474550,10.1385,127.53,127.48,30.80853524]
[1764578474743,0.06019618,127.52,127.49,3.28003817]
[1764578475143,0.06019618,127.52,127.5,3.22]
[1764578476047,7.11919618,127.52,127.5,3.22]
[1764578476448,0.06019618,127.52,127.5,3.22]
[1764578477045,3.14019618,127.52,127.5,3.22]
[1764578477446,3.14019618,127.52,127.49,3.28003817]
[1764578478953,3.08,127.51,127.49,0.06003817]
[1764578479343,3.14019618,127.52,127.49,3.28003817]
[1764578481446,10.19909618,127.52,127.49,3.28003817]
[1764578482853,3.07,127.51,127.49,3.28003817]
[1764578483349,7.11909618,127.52,127.49,3.28003817]
[1764578484455,10.18909618,127.52,127.49,3.28003817]
[1764578488258,3.38019618,127.52,127.49,3.28003817]
[1764578492066,3.38019618,127.52,127.5,3.23]
[1764578494562,3.32,127.51,127.49,3.29003817]
[1764578494753,7.11919618,127.52,127.49,3.29003817]
[1764578494754,10.43919618,127.52,127.49,3.29003817]
[1764578496172,0.06019618,127.52,127.5,3.23]
[1764578497266,7.057,127.56,127.52,3.23]
[1764578497466,3.32,127.59,127.52,3.23]
[1764578497768,3.32,127.59,127.55,3.23]
[1764578498471,3.37787109,127.58,127.56,0.05611031]
[1764578499467,3.32,127.57,127.56,0.05611031]
[1764578499867,10.3761,127.57,127.56,0.05611031]
[1764578502671,3.32,127.57,127.56,0.05611031]
[1764578502873,3.37787109,127.58,127.56,3.28611031]
[1764578503779,10.43357109,127.58,127.56,3.28611031]
[1764578504079,7.11357109,127.58,127.56,3.28611031]
[1764578505081,0.05787109,127.58,127.56,3.28611031]
[1764578506986,0.05787109,127.58,127.57,3.23]
[1764578510394,0.05787109,127.58,127.57,10.2861]
[1764578514890,3.09,127.64,127.59,3.23]
[1764578515187,3.09,127.64,127.59,30.01]
[1764578515785,3.09,127.62,127.6,0.05099625]
[1764578516388,3.1235631,127.63,127.6,3.28099625]
[1764578516895,3.09,127.62,127.6,0.05099625]
[1764578517089,3.09,127.62,127.55,3.23]
[1764578517090,112.8119,127.62,127.55,3.23]
[1764578517294,3.09,127.6,127.55,3.23]
[1764578518390,10.1456,127.58,127.56,0.05915275]
[1764578519393,3.09,127.57,127.56,0.05915275]
[1764578519697,10.1461,127.57,127.56,0.05915275]
[1764578523401,3.09,127.58,127.56,3.28915275]
[1764578523699,3.09,127.58,127.56,0.05915275]
[1764578525901,7.10670472,127.59,127.57,3.23]
[1764578526193,10.19670472,127.59,127.57,3.23]
[1764578526601,3.09,127.58,127.56,5.88326666]
[1764578526997,10.19670472,127.59,127.56,5.88326666]
[1764578529205,10.19670472,127.59,127.56,12.93986666]
[1764578530710,3.14160472,127.59,127.57,3.23]
[1764578534113,3.09,127.58,127.56,0.05915275]
[1764578535309,10.146,127.58,127.56,0.05915275]
[1764578536111,3.09,127.57,127.56,0.05915275]
[1764578539300,3.09,127.58,127.56,3.28915275]
[1764578539811,3.09,127.58,127.56,0.05915275]
[1764578543416,3.21160472,127.59,127.58,7.0555]
[1764578543708,3.21160472,127.59,127.57,2.59411391]
[1764578543913,3.21160472,127.59,127.56,0.05915275]
[1764578544420,3.21160472,127.59,127.56,7.11575275]
[1764578544622,3.21160472,127.59,127.56,10.34575275]
[1764578547223,3.21160472,127.59,127.56,7.11575275]
[1764578547527,3.21160472,127.59,127.56,10.20575275]
[1764578547826,3.21160472,127.59,127.56,7.11575275]
[1764578548127,3.21160472,127.59,127.56,10.20575275]
[1764578552336,3.21160472,127.59,127.56,0.05915275]
[1764578552937,3.27,127.57,127.56,0.05915275]
[1764578554030,0.05160472,127.59,127.57,3.09]
[1764578554226,2.59411391,127.62,127.59,3.09]
[1764578554227,3.27,127.62,127.59,3.09]
[1764578554637,3.27,127.62,127.6,2.59411391]
[1764578555339,3.30295463,127.62,127.6,2.6464084]
[1764578555933,3.27,127.66,127.61,26.78]
[1764578556132,3.27,127.66,127.61,29.87]
[1764578557036,3.27,127.66,127.62,0.05465214]
[1764578557541,3.27,127.64,127.62,0.05465214]
[1764578558135,3.27,127.64,127.62,3.14465214]
[1764578558534,10.3209,127.67,127.63,3.09]
[1764578558742,3.27,127.66,127.63,3.09]
[1764578559538,3.27,127.66,127.65,2.59411391]
[1764578559936,7.0506,127.67,127.65,5.68411391]
[1764578560141,3.27,127.69,127.66,2.59411391]
[1764578561036,109.6467,127.71,127.66,2.59411391]
[1764578561037,10.3206,127.67,127.66,2.59411391]
[1764578563642,3.27,127.66,127.65,0.05685622]
[1764578563844,3.27,127.66,127.65,2.65097013]
[1764578564545,3.27,127.66,127.65,0.05685622]
[1764578565449,10.3211,127.66,127.65,0.05685622]
[1764578566146,7.0511,127.66,127.65,5.74097013]
[1764578566954,7.0506,127.67,127.65,5.74097013]
[1764578568646,10.3206,127.67,127.65,5.74097013]
[1764578570657,3.27,127.66,127.65,2.65097013]
[1764578573959,7.0506,127.67,127.65,2.65097013]
[1764578573960,10.3206,127.67,127.65,5.88097013]
[1764578575259,3.27,127.66,127.65,0.05685622]
[1764578576161,10.3211,127.66,127.65,0.05685622]
[1764578581362,7.0525,127.64,127.61,30.01]
[1764578581552,3.27,127.63,127.61,30.01]
[1764578582064,7.0525,127.64,127.62,3.23]
[1764578582065,10.3225,127.64,127.62,3.23]
[1764578582252,10.3225,127.64,127.61,30.01]
[1764578582456,3.27,127.63,127.61,30.01]